[Event "Live Chess"]
[Site "Chess.com"]
[Date "2024.06.01"]
[Round "-"]
[White "willc-h99"]
[Black "SirGerhard"]
[Result "0-1"]
[WhiteElo "2661"]
[BlackElo "2760"]
[TimeControl "300"]
[EndTime "9:34:43 PDT"]
[Termination "SirGerhard won by resignation"]

1. d4 {[%clk 0:04:58.2]} 1... Nf6 {[%clk 0:04:58.9]} 2. Bg5 {[%clk 0:04:57.3]}
2... Ne4 {[%clk 0:04:57.4]} 3. h4 {[%clk 0:04:55.7]} 3... c5 {[%clk 0:04:55.5]}
4. d5 {[%clk 0:04:54.3]} 4... g6 {[%clk 0:04:51.8]} 5. Nd2 {[%clk 0:04:49]} 5...
Nxg5 {[%clk 0:04:50.8]} 6. hxg5 {[%clk 0:04:47.7]} 6... Bg7 {[%clk 0:04:50.7]}
7. c3 {[%clk 0:04:40.6]} 7... d6 {[%clk 0:04:50.1]} 8. e4 {[%clk 0:04:38.4]}
8... a6 {[%clk 0:04:49.2]} 9. a4 {[%clk 0:04:36.5]} 9... O-O {[%clk 0:04:45.5]}
10. Nc4 {[%clk 0:04:13]} 10... Nd7 {[%clk 0:04:40]} 11. Nf3 {[%clk 0:03:46.2]}
11... Nb6 {[%clk 0:04:33.4]} 12. Ne3 {[%clk 0:03:33.4]} 12... Rb8 {[%clk
0:03:54.4]} 13. Nd2 {[%clk 0:03:28.1]} 13... e6 {[%clk 0:03:45.5]} 14. a5 {[%clk
0:03:22.9]} 14... Na8 {[%clk 0:03:37.2]} 15. Qf3 {[%clk 0:03:18.6]} 15... exd5
{[%clk 0:03:25.9]} 16. Nxd5 {[%clk 0:03:13.1]} 16... Nc7 {[%clk 0:03:16.1]} 17.
Nf6+ {[%clk 0:03:01]} 17... Bxf6 {[%clk 0:03:14.9]} 18. gxf6 {[%clk 0:03:00.3]}
18... Ne8 {[%clk 0:03:14.2]} 19. e5 {[%clk 0:02:45]} 19... dxe5 {[%clk
0:03:13.3]} 20. Ne4 {[%clk 0:02:44.3]} 20... Bf5 {[%clk 0:03:12.5]} 21. Rd1
{[%clk 0:02:37.8]} 21... Qxa5 {[%clk 0:02:58.8]} 22. Bc4 {[%clk 0:01:58.5]}
22... Bxe4 {[%clk 0:02:43.5]} 23. Qxe4 {[%clk 0:01:56.9]} 23... Nxf6 {[%clk
0:02:42.8]} 24. Qh4 {[%clk 0:01:48]} 24... Qb6 {[%clk 0:02:42]} 25. Rd3 {[%clk
0:01:20.1]} 25... e4 {[%clk 0:02:40.3]} 26. Rdh3 {[%clk 0:00:59.7]} 26... Rbd8
{[%clk 0:02:30.4]} 27. g4 {[%clk 0:00:43.6]} 27... Qd6 {[%clk 0:02:23.1]} 28.
O-O {[%clk 0:00:41.5]} 28... Qf4 {[%clk 0:02:17.7]} 29. g5 {[%clk 0:00:30.9]}
29... Qxh4 {[%clk 0:02:16.8]} 30. Rxh4 {[%clk 0:00:30.1]} 30... Nh5 {[%clk
0:02:06.3]} 31. Rxe4 {[%clk 0:00:29.1]} 31... b5 {[%clk 0:02:05.7]} 32. Be2
{[%clk 0:00:20.2]} 32... Ng7 {[%clk 0:02:04.8]} 33. Ra1 {[%clk 0:00:19.6]} 33...
Rd2 {[%clk 0:02:01.8]} 34. Bf1 {[%clk 0:00:18.2]} 34... Rxb2 {[%clk 0:01:59.7]}
35. Rxa6 {[%clk 0:00:17.8]} 35... Ne6 {[%clk 0:01:58.9]} 36. Rb6 {[%clk
0:00:10.7]} 36... Nxg5 {[%clk 0:01:53.9]} 37. Re7 {[%clk 0:00:09.5]} 37... b4
{[%clk 0:01:49]} 38. cxb4 {[%clk 0:00:08.3]} 38... Rxb4 {[%clk 0:01:47.9]} 39.
Rxb4 {[%clk 0:00:07.1]} 39... cxb4 {[%clk 0:01:47]} 40. Rb7 {[%clk 0:00:07]}
40... Rd8 {[%clk 0:01:40.5]} 41. Rxb4 {[%clk 0:00:05.8]} 41... Rd2 {[%clk
0:01:39.6]} 0-1

[Event "Live Chess"]
[Site "Chess.com"]
[Date "2024.06.01"]
[Round "-"]
[White "Berdgross"]
[Black "Inglaterra"]
[Result "0-1"]
[WhiteElo "579"]
[BlackElo "2037"]
[TimeControl "300"]
[EndTime "9:35:10 PDT"]
[Termination "Inglaterra won by checkmate"]

1. e4 {[%clk 0:04:54.1]} 1... e5 {[%clk 0:04:44.5]} 2. d3 {[%clk 0:04:51.9]}
2... Nf6 {[%clk 0:04:41.1]} 3. Nf3 {[%clk 0:04:50.3]} 3... Nc6 {[%clk
0:04:40.1]} 4. Nc3 {[%clk 0:04:48.9]} 4... Bb4 {[%clk 0:04:38.9]} 5. Bd2 {[%clk
0:04:47.3]} 5... d5 {[%clk 0:04:36]} 6. exd5 {[%clk 0:04:45.5]} 6... Nxd5 {[%clk
0:04:35.9]} 7. Nxd5 {[%clk 0:04:44]} 7... Qxd5 {[%clk 0:04:34.5]} 8. Bxb4 {[%clk
0:04:42.2]} 8... Nxb4 {[%clk 0:04:34.4]} 9. a3 {[%clk 0:04:34.7]} 9... Nc6
{[%clk 0:04:32.4]} 10. c4 {[%clk 0:04:30.1]} 10... Qd6 {[%clk 0:04:29.3]} 11.
Qa4 {[%clk 0:04:25.4]} 11... O-O {[%clk 0:04:27.3]} 12. Be2 {[%clk 0:04:18.9]}
12... Bf5 {[%clk 0:04:25.9]} 13. Qb3 {[%clk 0:04:15.5]} 13... b6 {[%clk
0:04:10.2]} 14. O-O {[%clk 0:04:12.4]} 14... Rad8 {[%clk 0:04:02.2]} 15. Rad1
{[%clk 0:04:07.2]} 15... Bg4 {[%clk 0:03:51.4]} 16. h3 {[%clk 0:04:04.9]} 16...
Bxf3 {[%clk 0:03:49.2]} 17. Bxf3 {[%clk 0:04:03]} 17... Nd4 {[%clk 0:03:48.8]}
18. Qb4 {[%clk 0:03:54.4]} 18... Nxf3+ {[%clk 0:03:44.3]} 19. gxf3 {[%clk
0:03:50.9]} 19... Qg6+ {[%clk 0:03:26.1]} 20. Kh2 {[%clk 0:03:38]} 20... Qf5
{[%clk 0:03:13.1]} 21. Qc3 {[%clk 0:03:32.7]} 21... Rd4 {[%clk 0:03:07.6]} 22.
Rde1 {[%clk 0:03:06.6]} 22... Rh4 {[%clk 0:03:01.6]} 23. Kg1 {[%clk 0:02:30.4]}
23... Qxh3 {[%clk 0:02:58.8]} 24. Qxe5 {[%clk 0:02:26.6]} 24... Qh1# {[%clk
0:02:57.6]} 0-1

[Event "Live Chess"]
[Site "Chess.com"]
[Date "2024.06.01"]
[Round "-"]
[White "jumush"]
[Black "KeithArkell"]
[Result "0-1"]
[WhiteElo "1733"]
[BlackElo "2514"]
[TimeControl "300"]
[EndTime "9:35:15 PDT"]
[Termination "KeithArkell won by resignation"]

1. e4 {[%clk 0:04:34.2]} 1... c6 {[%clk 0:04:58.7]} 2. d4 {[%clk 0:04:26.5]}
2... d5 {[%clk 0:04:58.6]} 3. exd5 {[%clk 0:04:24.4]} 3... cxd5 {[%clk
0:04:57.6]} 4. Nf3 {[%clk 0:04:22.4]} 4... Nf6 {[%clk 0:04:56.7]} 5. Ne5 {[%clk
0:04:20.7]} 5... Nc6 {[%clk 0:04:55.7]} 6. Bb5 {[%clk 0:04:18.5]} 6... Bd7
{[%clk 0:04:54.4]} 7. Nxd7 {[%clk 0:04:16.6]} 7... Qxd7 {[%clk 0:04:53.5]} 8. c3
{[%clk 0:04:13.1]} 8... e6 {[%clk 0:04:52.9]} 9. O-O {[%clk 0:04:04.7]} 9... Be7
{[%clk 0:04:52.2]} 10. Re1 {[%clk 0:04:01.5]} 10... O-O {[%clk 0:04:51.3]} 11.
Nd2 {[%clk 0:03:58.4]} 11... g6 {[%clk 0:04:47.4]} 12. Nf3 {[%clk 0:03:56]}
12... Qc7 {[%clk 0:04:46.5]} 13. Bg5 {[%clk 0:03:46.4]} 13... Ne4 {[%clk
0:04:44.2]} 14. Bxe7 {[%clk 0:03:39.1]} 14... Qxe7 {[%clk 0:04:43.3]} 15. Bd3
{[%clk 0:03:26.1]} 15... Nd6 {[%clk 0:04:38.9]} 16. Qd2 {[%clk 0:03:18.4]} 16...
Qf6 {[%clk 0:04:37.5]} 17. Qh6 {[%clk 0:03:13.1]} 17... Qg7 {[%clk 0:04:36.4]}
18. Qxg7+ {[%clk 0:03:10.7]} 18... Kxg7 {[%clk 0:04:36.3]} 19. Rad1 {[%clk
0:02:55.5]} 19... Rfc8 {[%clk 0:04:22.1]} 20. Ne5 {[%clk 0:02:50.1]} 20... Nxe5
{[%clk 0:04:21]} 21. Rxe5 {[%clk 0:02:46.9]} 21... b5 {[%clk 0:04:19]} 22. a3
{[%clk 0:02:41.7]} 22... a5 {[%clk 0:04:17.6]} 23. Re2 {[%clk 0:02:38.7]} 23...
Rab8 {[%clk 0:04:16.2]} 24. g3 {[%clk 0:02:19.5]} 24... b4 {[%clk 0:04:15.2]}
25. axb4 {[%clk 0:02:16.5]} 25... axb4 {[%clk 0:04:15.1]} 26. cxb4 {[%clk
0:02:12.5]} 26... Rxb4 {[%clk 0:04:13.3]} 27. Kg2 {[%clk 0:02:08.6]} 27... Rxd4
{[%clk 0:04:11.9]} 28. Red2 {[%clk 0:01:47.6]} 28... Rb4 {[%clk 0:04:09.5]} 29.
h4 {[%clk 0:01:36.5]} 29... h6 {[%clk 0:04:06.6]} 30. Ra1 {[%clk 0:01:16.1]}
30... Rcb8 {[%clk 0:04:04.3]} 31. Ra6 {[%clk 0:01:13.3]} 31... Nc4 {[%clk
0:03:57.8]} 32. Bxc4 {[%clk 0:01:01.5]} 32... Rxc4 {[%clk 0:03:57.7]} 33. Ra2
{[%clk 0:00:53]} 33... g5 {[%clk 0:03:55.3]} 34. hxg5 {[%clk 0:00:48.9]} 34...
hxg5 {[%clk 0:03:55.2]} 35. Kf3 {[%clk 0:00:45]} 35... g4+ {[%clk 0:03:54.3]}
36. Kg2 {[%clk 0:00:39.3]} 36... Rb3 {[%clk 0:03:53.2]} 37. Re2 {[%clk
0:00:35.2]} 37... Kg6 {[%clk 0:03:52.1]} 38. Rd2 {[%clk 0:00:32.3]} 38... Rc1
{[%clk 0:03:48.1]} 39. Re2 {[%clk 0:00:29.6]} 39... Rb1 {[%clk 0:03:47.2]} 40.
Rd2 {[%clk 0:00:26.5]} 40... Kf6 {[%clk 0:03:41.5]} 41. Re2 {[%clk 0:00:22.7]}
41... Rd3 {[%clk 0:03:40.7]} 42. Rc2 {[%clk 0:00:18.9]} 42... Rdd1 {[%clk
0:03:39.5]} 0-1

[Event "Live Chess"]
[Site "Chess.com"]
[Date "2024.06.01"]
[Round "-"]
[White "Tatarinov_Maxim"]
[Black "FlyingChessKestrel13"]
[Result "1-0"]
[WhiteElo "2292"]
[BlackElo "2133"]
[TimeControl "300"]
[EndTime "9:35:25 PDT"]
[Termination "Tatarinov_Maxim won by resignation"]

1. Nf3 {[%clk 0:04:55.8]} 1... d5 {[%clk 0:04:58]} 2. g3 {[%clk 0:04:54.7]} 2...
Nf6 {[%clk 0:04:55.3]} 3. Bg2 {[%clk 0:04:54]} 3... c6 {[%clk 0:04:53.3]} 4. c4
{[%clk 0:04:50]} 4... e6 {[%clk 0:04:50.7]} 5. O-O {[%clk 0:04:47.9]} 5... Bd6
{[%clk 0:04:49.7]} 6. b3 {[%clk 0:04:46.7]} 6... O-O {[%clk 0:04:48.9]} 7. Bb2
{[%clk 0:04:45.7]} 7... Nbd7 {[%clk 0:04:48.1]} 8. d4 {[%clk 0:04:45.3]} 8... b6
{[%clk 0:04:47.2]} 9. Nc3 {[%clk 0:04:44.8]} 9... Bb7 {[%clk 0:04:46.2]} 10. Qc2
{[%clk 0:04:44.3]} 10... e5 {[%clk 0:04:40.2]} 11. cxd5 {[%clk 0:04:40.7]} 11...
cxd5 {[%clk 0:04:37.6]} 12. dxe5 {[%clk 0:04:39.5]} 12... Nxe5 {[%clk
0:04:35.4]} 13. Nxe5 {[%clk 0:04:39.4]} 13... Bxe5 {[%clk 0:04:33.9]} 14. Nb5
{[%clk 0:04:30.2]} 14... Rc8 {[%clk 0:04:31.3]} 15. Qd2 {[%clk 0:04:28.5]} 15...
a6 {[%clk 0:04:28.2]} 16. Bxe5 {[%clk 0:04:25.8]} 16... axb5 {[%clk 0:04:27.3]}
17. Rfd1 {[%clk 0:04:24.1]} 17... Qe7 {[%clk 0:04:15.6]} 18. Bxf6 {[%clk
0:04:06.2]} 18... Qxf6 {[%clk 0:04:14]} 19. Bxd5 {[%clk 0:04:05.8]} 19... Rfd8
{[%clk 0:04:09.9]} 20. e4 {[%clk 0:04:04.6]} 20... Bxd5 {[%clk 0:04:07.7]} 21.
exd5 {[%clk 0:04:02.6]} 21... Rd6 {[%clk 0:04:01.4]} 22. Qe2 {[%clk 0:03:45.4]}
22... Rxd5 {[%clk 0:03:42]} 23. Rxd5 {[%clk 0:03:30.5]} 23... Qxa1+ {[%clk
0:03:39.9]} 24. Kg2 {[%clk 0:03:30]} 24... g6 {[%clk 0:03:33.1]} 25. Rxb5 {[%clk
0:03:22.3]} 25... Qd4 {[%clk 0:03:27.1]} 26. Re5 {[%clk 0:03:13.1]} 26... Kg7
{[%clk 0:03:22.3]} 27. Re7 {[%clk 0:02:56.9]} 27... Qd5+ {[%clk 0:03:17.2]} 28.
Qe4 {[%clk 0:02:55.7]} 28... Qxe4+ {[%clk 0:03:03.8]} 29. Rxe4 {[%clk
0:02:55.6]} 29... Rc6 {[%clk 0:03:02.9]} 30. Kf3 {[%clk 0:02:47.7]} 30... Kf6
{[%clk 0:03:02]} 31. h4 {[%clk 0:02:39.7]} 31... h5 {[%clk 0:03:00.1]} 32. a4
{[%clk 0:02:28.3]} 32... Rc3+ {[%clk 0:02:56.1]} 33. Re3 {[%clk 0:02:26.6]}
33... Rc6 {[%clk 0:02:53.8]} 34. b4 {[%clk 0:02:20.8]} 34... Kf5 {[%clk
0:02:51]} 35. Ra3 {[%clk 0:02:14.5]} 35... f6 {[%clk 0:02:41.9]} 36. a5 {[%clk
0:02:12.2]} 36... bxa5 {[%clk 0:02:40.9]} 37. bxa5 {[%clk 0:02:12.1]} 37... Ra6
{[%clk 0:02:39]} 38. Ke3 {[%clk 0:02:11.4]} 38... Ke5 {[%clk 0:02:37.2]} 39. Kd3
{[%clk 0:02:07.7]} 39... Kd5 {[%clk 0:02:35.6]} 40. Ra2 {[%clk 0:01:59.8]} 40...
f5 {[%clk 0:02:30.2]} 41. Ra1 {[%clk 0:01:56.9]} 41... Kc5 {[%clk 0:02:29.1]}
42. Ke3 {[%clk 0:01:55.5]} 42... Kd5 {[%clk 0:02:27.7]} 43. Kf4 {[%clk
0:01:54.8]} 43... Kd4 {[%clk 0:02:24.2]} 44. Rd1+ {[%clk 0:01:47]} 44... Kc3
{[%clk 0:02:22.8]} 45. Kg5 {[%clk 0:01:46.3]} 45... Rxa5 {[%clk 0:02:19.7]} 46.
Kxg6 {[%clk 0:01:44.9]} 46... Kc2 {[%clk 0:02:14.5]} 47. Rd8 {[%clk 0:01:38.5]}
47... Kc3 {[%clk 0:02:10.8]} 48. Kxh5 {[%clk 0:01:37.2]} 48... Ra2 {[%clk
0:02:08.3]} 49. f3 {[%clk 0:01:28.4]} 49... Rf2 {[%clk 0:02:03.8]} 50. g4 {[%clk
0:01:24.1]} 50... Rxf3 {[%clk 0:02:01.9]} 51. g5 {[%clk 0:01:22.4]} 51... f4
{[%clk 0:01:58.5]} 52. g6 {[%clk 0:01:21.7]} 52... Rg3 {[%clk 0:01:57.7]} 53.
Kh6 {[%clk 0:01:18.1]} 53... f3 {[%clk 0:01:56.9]} 54. Rf8 {[%clk 0:01:15.2]}
54... Kd3 {[%clk 0:01:56.4]} 55. g7 {[%clk 0:01:14.6]} 55... Ke3 {[%clk
0:01:52.9]} 56. g8=Q {[%clk 0:01:12.7]} 56... Rxg8 {[%clk 0:01:51.8]} 57. Rxg8
{[%clk 0:01:12.6]} 57... f2 {[%clk 0:01:51.3]} 58. Rf8 {[%clk 0:01:12.1]} 1-0

[Event "Live Chess"]
[Site "Chess.com"]
[Date "2024.06.01"]
[Round "-"]
[White "PatientChessPapa"]
[Black "YrrriKharkiv"]
[Result "0-1"]
[WhiteElo "888"]
[BlackElo "2104"]
[TimeControl "300"]
[EndTime "9:35:28 PDT"]
[Termination "YrrriKharkiv won on time"]

1. e4 {[%clk 0:04:56.2]} 1... e6 {[%clk 0:04:52.7]} 2. d4 {[%clk 0:04:54.4]}
2... d5 {[%clk 0:04:51.7]} 3. exd5 {[%clk 0:04:53.2]} 3... exd5 {[%clk
0:04:50.4]} 4. c4 {[%clk 0:04:52]} 4... c6 {[%clk 0:04:47.6]} 5. Nc3 {[%clk
0:04:48.7]} 5... Bb4 {[%clk 0:04:44.7]} 6. Nf3 {[%clk 0:04:45.5]} 6... Ne7
{[%clk 0:04:43]} 7. Be2 {[%clk 0:04:29.2]} 7... Nd7 {[%clk 0:04:36.2]} 8. O-O
{[%clk 0:04:26.4]} 8... O-O {[%clk 0:04:34.6]} 9. Bg5 {[%clk 0:04:16.6]} 9... f6
{[%clk 0:04:33.3]} 10. Bd2 {[%clk 0:03:52.6]} 10... Bd6 {[%clk 0:04:18.2]} 11.
Re1 {[%clk 0:03:13.6]} 11... Re8 {[%clk 0:04:14.3]} 12. Qc2 {[%clk 0:03:03.9]}
12... Nf8 {[%clk 0:04:08.1]} 13. cxd5 {[%clk 0:02:34.2]} 13... cxd5 {[%clk
0:04:04.2]} 14. Bb5 {[%clk 0:01:48.7]} 14... Bd7 {[%clk 0:03:43]} 15. Bd3 {[%clk
0:01:34]} 15... a6 {[%clk 0:03:37.8]} 16. Na4 {[%clk 0:01:23.5]} 16... Rc8
{[%clk 0:03:27.1]} 17. Qb3 {[%clk 0:01:16]} 17... b5 {[%clk 0:03:17.1]} 18. Nc3
{[%clk 0:00:44.5]} 18... Be6 {[%clk 0:03:09.6]} 19. a4 {[%clk 0:00:32.2]} 19...
b4 {[%clk 0:03:08.3]} 20. Ne2 {[%clk 0:00:21.8]} 20... a5 {[%clk 0:03:06.7]} 21.
Bb5 {[%clk 0:00:13.6]} 21... Bd7 {[%clk 0:03:03]} 22. Bxd7 {[%clk 0:00:12.3]}
22... Qxd7 {[%clk 0:03:01.5]} 23. Nf4 {[%clk 0:00:08]} 23... Bxf4 {[%clk
0:02:55.9]} 24. Bxf4 {[%clk 0:00:06.6]} 24... Neg6 {[%clk 0:02:54.7]} 25. Bg3
{[%clk 0:00:04.7]} 25... Ne6 {[%clk 0:02:49.3]} 26. Rac1 {[%clk 0:00:00.3]}
26... Rxc1 {[%clk 0:02:42.5]} 0-1

[Event "Live Chess"]
[Site "Chess.com"]
[Date "2024.06.01"]
[Round "-"]
[White "Pizzaman313"]
[Black "13Alexey"]
[Result "1-0"]
[WhiteElo "1194"]
[BlackElo "738"]
[TimeControl "300"]
[EndTime "9:35:28 PDT"]
[Termination "Pizzaman313 won by checkmate"]

1. e4 {[%clk 0:04:56.4]} 1... e5 {[%clk 0:04:59.1]} 2. Nf3 {[%clk 0:04:55.2]}
2... Nc6 {[%clk 0:04:58.1]} 3. Bc4 {[%clk 0:04:48.1]} 3... Nf6 {[%clk 0:04:54]}
4. Ng5 {[%clk 0:04:45.3]} 4... Bc5 {[%clk 0:04:48.4]} 5. Bxf7+ {[%clk
0:04:40.8]} 5... Kf8 {[%clk 0:04:45.5]} 6. O-O {[%clk 0:04:33.2]} 6... Nxe4
{[%clk 0:04:36.8]} 7. Nxe4 {[%clk 0:04:31.5]} 7... Kxf7 {[%clk 0:04:35.3]} 8.
Nxc5 {[%clk 0:04:30.6]} 8... b6 {[%clk 0:03:05.7]} 9. Nd3 {[%clk 0:04:13.1]}
9... Re8 {[%clk 0:03:02.4]} 10. Qh5+ {[%clk 0:04:09.1]} 10... Kg8 {[%clk
0:02:57.6]} 11. Re1 {[%clk 0:04:05.3]} 11... d6 {[%clk 0:02:56.1]} 12. Nc3
{[%clk 0:04:00.3]} 12... Nd4 {[%clk 0:02:53.9]} 13. Nd5 {[%clk 0:03:45.2]} 13...
Nxc2 {[%clk 0:02:48.8]} 14. Nxc7 {[%clk 0:03:42.9]} 14... Qxc7 {[%clk
0:02:45.5]} 15. Qxe8# {[%clk 0:03:41.8]} 1-0

[Event "Live Chess"]
[Site "Chess.com"]
[Date "2024.06.01"]
[Round "-"]
[White "dl_chess"]
[Black "KyryloPoluliakh"]
[Result "0-1"]
[WhiteElo "1161"]
[BlackElo "1468"]
[TimeControl "300"]
[EndTime "9:35:43 PDT"]
[Termination "KyryloPoluliakh won by resignation"]

1. e4 {[%clk 0:04:55.2]} 1... c5 {[%clk 0:04:57.2]} 2. Nf3 {[%clk 0:04:53.2]}
2... Nc6 {[%clk 0:04:55.6]} 3. d4 {[%clk 0:04:52.1]} 3... cxd4 {[%clk
0:04:53.5]} 4. Nxd4 {[%clk 0:04:51.3]} 4... g6 {[%clk 0:04:52.2]} 5. Nc3 {[%clk
0:04:47.4]} 5... Bg7 {[%clk 0:04:50.7]} 6. Be3 {[%clk 0:04:42.2]} 6... Nf6
{[%clk 0:04:42.2]} 7. Bb5 {[%clk 0:04:37.9]} 7... a6 {[%clk 0:04:36.1]} 8. Bxc6
{[%clk 0:04:36.7]} 8... bxc6 {[%clk 0:04:31.8]} 9. Qd2 {[%clk 0:04:34]} 9... O-O
{[%clk 0:04:27.2]} 10. O-O-O {[%clk 0:04:32.3]} 10... Re8 {[%clk 0:04:21.7]} 11.
h4 {[%clk 0:04:31.2]} 11... h5 {[%clk 0:04:17.4]} 12. f4 {[%clk 0:04:11.8]}
12... Rb8 {[%clk 0:04:06.6]} 13. f5 {[%clk 0:04:10.2]} 13... Qb6 {[%clk
0:03:51.3]} 14. Nb3 {[%clk 0:04:00.1]} 14... Qb7 {[%clk 0:03:45.4]} 15. fxg6
{[%clk 0:03:57.7]} 15... fxg6 {[%clk 0:03:40.9]} 16. Bh6 {[%clk 0:03:49.4]}
16... Bh8 {[%clk 0:03:30.7]} 17. Qg5 {[%clk 0:03:43]} 17... Kh7 {[%clk
0:03:24.6]} 18. e5 {[%clk 0:03:08]} 18... Ng4 {[%clk 0:03:18.8]} 19. Qf4 {[%clk
0:02:59.1]} 19... Nxh6 {[%clk 0:03:13.5]} 20. Ne4 {[%clk 0:02:43.5]} 20... Qb5
{[%clk 0:02:45.9]} 21. Ng5+ {[%clk 0:02:41.8]} 21... Kg8 {[%clk 0:02:37.4]} 22.
Rhf1 {[%clk 0:02:34.7]} 22... Qxe5 {[%clk 0:02:27.9]} 23. Qxe5 {[%clk
0:02:00.4]} 23... Bxe5 {[%clk 0:02:25.6]} 24. Rde1 {[%clk 0:01:50.3]} 24... d6
{[%clk 0:02:23.2]} 25. c3 {[%clk 0:01:37.5]} 25... Nf5 {[%clk 0:02:04]} 26. g4
{[%clk 0:00:59.5]} 26... hxg4 {[%clk 0:01:57.9]} 27. h5 {[%clk 0:00:58.5]} 27...
gxh5 {[%clk 0:01:54.5]} 28. Rxf5 {[%clk 0:00:56.1]} 28... Bxf5 {[%clk
0:01:52.1]} 0-1

[Event "Live Chess"]
[Site "Chess.com"]
[Date "2024.06.01"]
[Round "-"]
[White "blunderabit"]
[Black "seasidecastle27"]
[Result "1-0"]
[WhiteElo "1835"]
[BlackElo "1951"]
[TimeControl "300"]
[EndTime "9:35:46 PDT"]
[Termination "blunderabit won by checkmate"]

1. e4 {[%clk 0:04:54.2]} 1... e6 {[%clk 0:04:58.8]} 2. d4 {[%clk 0:04:51.8]}
2... d5 {[%clk 0:04:57.8]} 3. Bd3 {[%clk 0:04:50.5]} 3... c5 {[%clk 0:04:50.7]}
4. c3 {[%clk 0:04:42.6]} 4... Nc6 {[%clk 0:04:48.7]} 5. Nf3 {[%clk 0:04:25.8]}
5... dxe4 {[%clk 0:04:45.8]} 6. Bxe4 {[%clk 0:04:23.8]} 6... Nf6 {[%clk
0:04:45]} 7. Bd3 {[%clk 0:04:19.4]} 7... cxd4 {[%clk 0:04:39.4]} 8. cxd4 {[%clk
0:04:17.6]} 8... Be7 {[%clk 0:04:35.6]} 9. O-O {[%clk 0:04:14.9]} 9... O-O
{[%clk 0:04:34.3]} 10. Be3 {[%clk 0:04:07.4]} 10... b6 {[%clk 0:04:32.5]} 11. a3
{[%clk 0:04:01.2]} 11... Bb7 {[%clk 0:04:31.4]} 12. Nc3 {[%clk 0:03:58.5]} 12...
Rc8 {[%clk 0:04:29.9]} 13. Rc1 {[%clk 0:03:55]} 13... Na5 {[%clk 0:04:08.8]} 14.
Bb1 {[%clk 0:03:46.9]} 14... Nc4 {[%clk 0:04:00.9]} 15. Qc2 {[%clk 0:03:44.1]}
15... Nxe3 {[%clk 0:03:50.4]} 16. fxe3 {[%clk 0:03:41.8]} 16... Be4 {[%clk
0:03:47]} 17. Qe2 {[%clk 0:03:27.7]} 17... Bxb1 {[%clk 0:03:43.8]} 18. Rxb1
{[%clk 0:03:27.2]} 18... Bxa3 {[%clk 0:03:34.9]} 19. Nb5 {[%clk 0:03:23.9]}
19... Be7 {[%clk 0:03:19.5]} 20. Nxa7 {[%clk 0:03:22.4]} 20... Ra8 {[%clk
0:03:16.3]} 21. Nc6 {[%clk 0:03:19.8]} 21... Qd7 {[%clk 0:03:10.8]} 22. Nfe5
{[%clk 0:03:14.3]} 22... Qb7 {[%clk 0:03:06.4]} 23. Qf3 {[%clk 0:02:35.3]} 23...
Bd6 {[%clk 0:02:57]} 24. g4 {[%clk 0:02:04.5]} 24... Bxe5 {[%clk 0:02:44.4]} 25.
Nxe5 {[%clk 0:01:59.9]} 25... Qxf3 {[%clk 0:02:41.5]} 26. Rxf3 {[%clk
0:01:59.4]} 26... h6 {[%clk 0:02:28.6]} 27. h4 {[%clk 0:01:54.7]} 27... Nd5
{[%clk 0:02:22.4]} 28. Rbf1 {[%clk 0:01:40.3]} 28... f6 {[%clk 0:02:19.1]} 29.
Ng6 {[%clk 0:01:36.4]} 29... Rfc8 {[%clk 0:02:12.8]} 30. e4 {[%clk 0:01:32]}
30... Kh7 {[%clk 0:01:58.1]} 31. exd5 {[%clk 0:01:22.5]} 31... Kxg6 {[%clk
0:01:56.4]} 32. dxe6 {[%clk 0:01:21.3]} 32... Re8 {[%clk 0:01:53]} 33. h5+
{[%clk 0:01:08.7]} 33... Kg5 {[%clk 0:01:49.1]} 34. Rf5+ {[%clk 0:00:57.5]}
34... Kxg4 {[%clk 0:01:47.5]} 35. Kg2 {[%clk 0:00:56.3]} 35... g5 {[%clk
0:01:27.5]} 36. hxg6 {[%clk 0:00:53.1]} 36... Rxe6 {[%clk 0:01:16.7]} 37. R1f4#
{[%clk 0:00:49.7]} 1-0

[Event "Live Chess"]
[Site "Chess.com"]
[Date "2024.06.01"]
[Round "-"]
[White "jimwad"]
[Black "viktor_forever1994"]
[Result "0-1"]
[WhiteElo "1217"]
[BlackElo "1414"]
[TimeControl "300"]
[EndTime "9:35:47 PDT"]
[Termination "viktor_forever1994 won by checkmate"]

1. c4 {[%clk 0:04:58.5]} 1... e5 {[%clk 0:04:59.9]} 2. g3 {[%clk 0:04:57.3]}
2... Nc6 {[%clk 0:04:59.8]} 3. Bg2 {[%clk 0:04:56.4]} 3... Nf6 {[%clk
0:04:59.7]} 4. Nc3 {[%clk 0:04:55.7]} 4... d6 {[%clk 0:04:55.8]} 5. e3 {[%clk
0:04:54.7]} 5... Be6 {[%clk 0:04:55.7]} 6. b3 {[%clk 0:04:53.1]} 6... d5 {[%clk
0:04:55.6]} 7. cxd5 {[%clk 0:04:48.3]} 7... Nxd5 {[%clk 0:04:55.5]} 8. Nxd5
{[%clk 0:04:47.2]} 8... Bxd5 {[%clk 0:04:55.1]} 9. Bxd5 {[%clk 0:04:45.3]} 9...
Qxd5 {[%clk 0:04:55]} 10. Nf3 {[%clk 0:04:39.6]} 10... O-O-O {[%clk 0:04:53.4]}
11. O-O {[%clk 0:04:38.2]} 11... f5 {[%clk 0:04:47.1]} 12. d4 {[%clk 0:04:36.9]}
12... h6 {[%clk 0:04:38]} 13. Bb2 {[%clk 0:04:31.5]} 13... g5 {[%clk 0:04:35.1]}
14. dxe5 {[%clk 0:04:25.9]} 14... Qe4 {[%clk 0:04:19.7]} 15. e6 {[%clk
0:04:17.8]} 15... Rxd1 {[%clk 0:04:13.8]} 16. Raxd1 {[%clk 0:04:10.8]} 16...
Qxf3 {[%clk 0:04:03.1]} 17. Bxh8 {[%clk 0:04:07.7]} 17... Bd6 {[%clk 0:03:59.2]}
18. Bg7 {[%clk 0:03:56.8]} 18... h5 {[%clk 0:03:56.1]} 19. Bf6 {[%clk
0:03:54.5]} 19... h4 {[%clk 0:03:47.5]} 20. gxh4 {[%clk 0:03:45.2]} 20... gxh4
{[%clk 0:03:38.7]} 21. Bxh4 {[%clk 0:03:43.9]} 21... Qh3 {[%clk 0:03:36.7]} 22.
Bg3 {[%clk 0:03:37.4]} 22... Ne5 {[%clk 0:03:21.5]} 23. Bxe5 {[%clk 0:03:23.7]}
23... Bxe5 {[%clk 0:03:21.4]} 24. e7 {[%clk 0:03:21.6]} 24... Qxh2# {[%clk
0:03:18.3]} 0-1

[Event "Live Chess"]
[Site "Chess.com"]
[Date "2024.06.01"]
[Round "-"]
[White "Mangoalo"]
[Black "SirGerhard"]
[Result "0-1"]
[WhiteElo "988"]
[BlackElo "2760"]
[TimeControl "300"]
[EndTime "9:35:50 PDT"]
[Termination "SirGerhard won by checkmate"]

1. e4 {[%clk 0:04:57.6]} 1... c5 {[%clk 0:04:58.8]} 2. Nf3 {[%clk 0:04:56.5]}
2... d6 {[%clk 0:04:58.2]} 3. d4 {[%clk 0:04:56.3]} 3... cxd4 {[%clk 0:04:57.5]}
4. Nxd4 {[%clk 0:04:55.6]} 4... Nf6 {[%clk 0:04:57]} 5. Nc3 {[%clk 0:04:54.4]}
5... a6 {[%clk 0:04:55.7]} 6. f4 {[%clk 0:04:42.5]} 6... Nc6 {[%clk 0:04:51.9]}
7. Nxc6 {[%clk 0:04:41.2]} 7... bxc6 {[%clk 0:04:50.8]} 8. e5 {[%clk 0:04:34.3]}
8... Ng4 {[%clk 0:04:49.9]} 9. exd6 {[%clk 0:04:30.6]} 9... exd6 {[%clk
0:04:48.8]} 10. h3 {[%clk 0:04:28.6]} 10... Qh4+ {[%clk 0:04:46.9]} 11. Ke2
{[%clk 0:04:25.4]} 11... Qf2+ {[%clk 0:04:45.6]} 12. Kd3 {[%clk 0:04:24]} 12...
Bf5+ {[%clk 0:04:44.8]} 13. Kc4 {[%clk 0:04:22.8]} 13... Qc5+ {[%clk 0:04:42.6]}
14. Kb3 {[%clk 0:04:21.3]} 14... Rb8+ {[%clk 0:04:41.8]} 15. Ka4 {[%clk
0:04:19.8]} 15... Qb4# {[%clk 0:04:40.6]} 0-1